[Event "Titled Tuesday Blitz June 20 Late 2023"]
[White "Sadilek, Peter"]
[Black "Kopacz, Grzegorz"]
[WhiteFideId "1616439"]
[BlackFideId "1109880"]
[WhiteElo "2227"]
[BlackElo "2037"]
[Result "1-0"]
[Round "5"]
[TimeControl "180+2"]
[Date "2023.06.20"]
[WhiteClock "0:00:04"]
[BlackClock "0:00:01"]
[Board "151"]

1. d4 {[%clk 0:02:41]}  Nf6 {[%clk 0:02:59]} 2. Nf3 {[%clk 0:02:39]}  g6 {[%clk 0:02:54]} 3. Bg5 {[%clk 0:02:37]}  Bg7 {[%clk 0:02:50]} 4. Nbd2 {[%clk 0:02:36]}  O-O {[%clk 0:02:46]} 5. c3 {[%clk 0:02:36]}  d6 {[%clk 0:02:43]} 6. e4 {[%clk 0:02:36]}  Bg4 {[%clk 0:02:38]} 7. Bd3 {[%clk 0:02:28]}  Nbd7 {[%clk 0:02:36]} 8. O-O {[%clk 0:02:25]}  h6 {[%clk 0:02:22]} 9. Bh4 {[%clk 0:02:25]}  e5 {[%clk 0:02:17]} 10. h3 {[%clk 0:02:24]}  Bxf3 {[%clk 0:02:13]} 11. Qxf3 {[%clk 0:02:18]}  Re8 {[%clk 0:02:07]} 12. Rad1 {[%clk 0:02:12]}  a5 {[%clk 0:02:05]} 13. Bb5 {[%clk 0:02:07]}  c6 {[%clk 0:02:03]} 14. Ba4 {[%clk 0:01:58]}  b5 {[%clk 0:01:58]} 15. Bc2 {[%clk 0:01:58]}  Qb6 {[%clk 0:01:55]} 16. Bxf6 {[%clk 0:01:36]}  Nxf6 {[%clk 0:01:53]} 17. dxe5 {[%clk 0:01:36]}  dxe5 {[%clk 0:01:51]} 18. Qe2 {[%clk 0:01:15]}  Nh5 {[%clk 0:01:44]} 19. Kh2 {[%clk 0:01:06]}  Nf4 {[%clk 0:01:38]} 20. Qf3 {[%clk 0:01:06]}  Rad8 {[%clk 0:01:34]} 21. g3 {[%clk 0:01:07]}  Ne6 {[%clk 0:01:33]} 22. Bb3 {[%clk 0:01:04]}  Ng5 {[%clk 0:01:25]} 23. Qe2 {[%clk 0:00:59]}  a4 {[%clk 0:01:19]} 24. Bc2 {[%clk 0:00:59]}  Rd6 {[%clk 0:00:59]} 25. Nc4 {[%clk 0:00:47]}  bxc4 {[%clk 0:00:53]} 26. Rxd6 {[%clk 0:00:46]}  Qxb2 {[%clk 0:00:50]} 27. Rxc6 {[%clk 0:00:33]}  Qxc3 {[%clk 0:00:48]} 28. Rxc4 {[%clk 0:00:32]}  Qb2 {[%clk 0:00:37]} 29. Rb1 {[%clk 0:00:20]}  Qxa2 {[%clk 0:00:30]} 30. Rxa4 {[%clk 0:00:21]}  Qe6 {[%clk 0:00:30]} 31. h4 {[%clk 0:00:13]}  Qh3+ {[%clk 0:00:23]} 32. Kg1 {[%clk 0:00:14]}  Ne6 {[%clk 0:00:24]} 33. Bb3 {[%clk 0:00:09]}  Nd4 {[%clk 0:00:23]} 34. Rxd4 {[%clk 0:00:08]}  exd4 {[%clk 0:00:23]} 35. Qc4 {[%clk 0:00:08]}  Qd7 {[%clk 0:00:22]} 36. f3 {[%clk 0:00:06]}  d3 {[%clk 0:00:19]} 37. Rd1 {[%clk 0:00:06]}  Rd8 {[%clk 0:00:17]} 38. Kg2 {[%clk 0:00:06]}  d2 {[%clk 0:00:15]} 39. Qd5 {[%clk 0:00:06]}  Qxd5 {[%clk 0:00:12]} 40. Bxd5 {[%clk 0:00:06]}  Bc3 {[%clk 0:00:12]} 41. Kf2 {[%clk 0:00:07]}  Kg7 {[%clk 0:00:07]} 42. Ke2 {[%clk 0:00:07]}  Ba5 {[%clk 0:00:07]} 43. Ra1 {[%clk 0:00:07]}  Bc3 {[%clk 0:00:06]} 44. Ra7 {[%clk 0:00:06]}  Rf8 {[%clk 0:00:05]} 45. Rd7 {[%clk 0:00:06]}  Bb4 {[%clk 0:00:05]} 46. Bb3 {[%clk 0:00:06]}  h5 {[%clk 0:00:05]} 47. Rd4 {[%clk 0:00:05]}  Bc3 {[%clk 0:00:03]} 48. Rd3 {[%clk 0:00:05]}  Bb4 {[%clk 0:00:03]} 49. Rd7 {[%clk 0:00:05]}  Bc3 {[%clk 0:00:03]} 50. Kd1 {[%clk 0:00:05]}  Bb4 {[%clk 0:00:03]} 51. Kc2 {[%clk 0:00:05]}  Ba5 {[%clk 0:00:03]} 52. f4 {[%clk 0:00:04]}  Bb4 {[%clk 0:00:03]} 53. Kd1 {[%clk 0:00:04]}  Ba5 {[%clk 0:00:03]} 54. Ke2 {[%clk 0:00:04]}  Bb4 {[%clk 0:00:03]} 55. e5 {[%clk 0:00:05]}  Ba5 {[%clk 0:00:03]} 56. e6 {[%clk 0:00:05]}  Re8 {[%clk 0:00:03]} 57. Rxf7+ {[%clk 0:00:05]}  Kg8 {[%clk 0:00:04]} 58. Rd7 {[%clk 0:00:05]}  Bb4 {[%clk 0:00:03]} 59. Kf3 {[%clk 0:00:05]}  Kh8 {[%clk 0:00:02]} 60. g4 {[%clk 0:00:05]}  Ba5 {[%clk 0:00:02]} 61. gxh5 {[%clk 0:00:05]}  gxh5 {[%clk 0:00:02]} 62. f5 {[%clk 0:00:06]}  Bc3 {[%clk 0:00:00]} 63. Rd3 {[%clk 0:00:06]}  Bf6 {[%clk 0:00:01]} 64. Rd7 {[%clk 0:00:04]}  Bg7 {[%clk 0:00:01]} 65. Rxd2 {[%clk 0:00:04]}  Bf6 {[%clk 0:00:02]} 66. Rd7 {[%clk 0:00:05]}  Bg7 {[%clk 0:00:03]} 67. Ke4 {[%clk 0:00:05]}  Bf6 {[%clk 0:00:03]} 68. Bd5 {[%clk 0:00:06]}  Bxh4 {[%clk 0:00:04]} 69. Ke5 {[%clk 0:00:05]}  Bg3+ {[%clk 0:00:05]} 70. Kf6 {[%clk 0:00:05]}  Bh4+ {[%clk 0:00:05]} 71. Kf7 {[%clk 0:00:06]}  Rg8 {[%clk 0:00:05]} 72. f6 {[%clk 0:00:05]}  Kh7 {[%clk 0:00:02]} 73. e7 {[%clk 0:00:04]}  Bxf6 {[%clk 0:00:02]} 74. Kxf6 {[%clk 0:00:04]}  Rg7 {[%clk 0:00:02]} 75. Bf7 {[%clk 0:00:04]}  Rg6+ {[%clk 0:00:01]} 76. Bxg6+ {[%clk 0:00:04]} 1-0


[Site "https://www.chess.com"]

[Event "Titled Tuesday Blitz June 20 Late 2023"]
[White "Lach, Aleksandra"]
[Black "Fernandez Siles, Luis"]
[WhiteFideId "1134299"]
[BlackFideId "2209420"]
[WhiteElo "2111"]
[BlackElo "2195"]
[Result "0-1"]
[Round "5"]
[TimeControl "180+2"]
[Date "2023.06.20"]
[WhiteClock "0:00:35"]
[BlackClock "0:00:56"]
[Board "152"]

1. Nf3 {[%clk 0:03:00]}  g6 {[%clk 0:02:56]} 2. g3 {[%clk 0:02:58]}  Bg7 {[%clk 0:02:55]} 3. Bg2 {[%clk 0:02:58]}  e5 {[%clk 0:02:55]} 4. d3 {[%clk 0:02:52]}  Nc6 {[%clk 0:02:53]} 5. O-O {[%clk 0:02:52]}  d5 {[%clk 0:02:53]} 6. e4 {[%clk 0:02:46]}  dxe4 {[%clk 0:02:51]} 7. dxe4 {[%clk 0:02:47]}  Qxd1 {[%clk 0:02:51]} 8. Rxd1 {[%clk 0:02:47]}  Bg4 {[%clk 0:02:51]} 9. c3 {[%clk 0:02:46]}  Nf6 {[%clk 0:02:49]} 10. Re1 {[%clk 0:02:44]}  O-O {[%clk 0:02:46]} 11. h3 {[%clk 0:02:43]}  Bxf3 {[%clk 0:02:42]} 12. Bxf3 {[%clk 0:02:44]}  Rfe8 {[%clk 0:02:39]} 13. Na3 {[%clk 0:02:43]}  Nd7 {[%clk 0:02:38]} 14. Be3 {[%clk 0:02:38]}  Bf8 {[%clk 0:02:38]} 15. Nc2 {[%clk 0:02:32]}  Bc5 {[%clk 0:02:35]} 16. Rad1 {[%clk 0:02:32]}  Bxe3 {[%clk 0:02:35]} 17. Nxe3 {[%clk 0:02:15]}  Nb6 {[%clk 0:02:21]} 18. Nd5 {[%clk 0:02:14]}  Nxd5 {[%clk 0:02:14]} 19. exd5 {[%clk 0:02:15]}  Na5 {[%clk 0:02:08]} 20. d6 {[%clk 0:01:57]}  cxd6 {[%clk 0:02:07]} 21. Rxd6 {[%clk 0:01:57]}  Nc4 {[%clk 0:02:02]} 22. Rd7 {[%clk 0:01:57]}  Nxb2 {[%clk 0:01:58]} 23. Bd5 {[%clk 0:01:55]}  Rf8 {[%clk 0:01:54]} 24. Rb1 {[%clk 0:01:55]}  Na4 {[%clk 0:01:52]} 25. Rc7 {[%clk 0:01:40]}  Nb6 {[%clk 0:01:51]} 26. Bb3 {[%clk 0:01:29]}  Rac8 {[%clk 0:01:50]} 27. Rxb7 {[%clk 0:01:29]}  Rxc3 {[%clk 0:01:49]} 28. Rxa7 {[%clk 0:01:30]}  h5 {[%clk 0:01:41]} 29. Re1 {[%clk 0:01:28]}  h4 {[%clk 0:01:38]} 30. Kg2 {[%clk 0:01:27]}  hxg3 {[%clk 0:01:39]} 31. fxg3 {[%clk 0:01:28]}  Rc5 {[%clk 0:01:33]} 32. Rf1 {[%clk 0:01:23]}  Nd5 {[%clk 0:01:30]} 33. Kf3 {[%clk 0:01:11]}  Kg7 {[%clk 0:01:17]} 34. Rd1 {[%clk 0:01:07]}  e4+ {[%clk 0:01:14]} 35. Kxe4 {[%clk 0:00:55]}  Nc3+ {[%clk 0:01:13]} 36. Kd4 {[%clk 0:00:56]}  Rcc8 {[%clk 0:00:57]} 37. Rd7 {[%clk 0:00:49]}  Nxd1 {[%clk 0:00:56]} 38. Bxd1 {[%clk 0:00:35]}  Rcd8 {[%clk 0:00:56]} 0-1


[Site "https://www.chess.com"]

[Event "Titled Tuesday Blitz June 20 Late 2023"]
[White "Quirke, Jeffrey"]
[Black "Fajdetic, Hrvoje"]
[WhiteFideId "2013029"]
[BlackFideId "14501945"]
[WhiteElo "2207"]
[BlackElo "2185"]
[Result "1-0"]
[Round "5"]
[TimeControl "180+2"]
[Date "2023.06.20"]
[WhiteClock "0:00:21"]
[BlackClock "0:00:00"]
[Board "153"]

1. e4 {[%clk 0:02:48]}  c5 {[%clk 0:02:59]} 2. Nc3 {[%clk 0:02:48]}  a6 {[%clk 0:02:53]} 3. g3 {[%clk 0:02:46]}  g6 {[%clk 0:02:51]} 4. Bg2 {[%clk 0:02:46]}  Bg7 {[%clk 0:02:52]} 5. f4 {[%clk 0:02:41]}  Nc6 {[%clk 0:02:50]} 6. d3 {[%clk 0:02:40]}  d6 {[%clk 0:02:47]} 7. Nh3 {[%clk 0:02:31]}  h5 {[%clk 0:02:43]} 8. Nf2 {[%clk 0:02:28]}  h4 {[%clk 0:02:40]} 9. g4 {[%clk 0:02:26]}  h3 {[%clk 0:02:31]} 10. Nxh3 {[%clk 0:02:18]}  Nd4 {[%clk 0:02:29]} 11. Nf2 {[%clk 0:02:04]}  e5 {[%clk 0:02:09]} 12. Nd5 {[%clk 0:01:46]}  Ne7 {[%clk 0:02:02]} 13. Nxe7 {[%clk 0:01:31]}  Qxe7 {[%clk 0:02:00]} 14. c3 {[%clk 0:01:32]}  Nc6 {[%clk 0:01:53]} 15. f5 {[%clk 0:01:29]}  Qh4 {[%clk 0:01:49]} 16. Qf3 {[%clk 0:01:22]}  b5 {[%clk 0:01:39]} 17. Be3 {[%clk 0:01:06]}  b4 {[%clk 0:01:36]} 18. h3 {[%clk 0:01:02]}  Bh6 {[%clk 0:01:14]} 19. O-O {[%clk 0:01:01]}  Bxe3 {[%clk 0:01:09]} 20. Qxe3 {[%clk 0:01:02]}  g5 {[%clk 0:01:04]} 21. Nh1 {[%clk 0:00:51]}  f6 {[%clk 0:00:54]} 22. Ng3 {[%clk 0:00:51]}  Qh6 {[%clk 0:00:46]} 23. Ne2 {[%clk 0:00:51]}  O-O {[%clk 0:00:43]} 24. d4 {[%clk 0:00:51]}  cxd4 {[%clk 0:00:20]} 25. cxd4 {[%clk 0:00:51]}  a5 {[%clk 0:00:18]} 26. d5 {[%clk 0:00:48]}  Ne7 {[%clk 0:00:17]} 27. Rac1 {[%clk 0:00:48]}  Ba6 {[%clk 0:00:17]} 28. Rc7 {[%clk 0:00:41]}  Rf7 {[%clk 0:00:16]} 29. Rfc1 {[%clk 0:00:40]}  Kg7 {[%clk 0:00:14]} 30. Ng3 {[%clk 0:00:40]}  Re8 {[%clk 0:00:08]} 31. Nh5+ {[%clk 0:00:39]}  Kf8 {[%clk 0:00:08]} 32. Bf1 {[%clk 0:00:40]}  Bxf1 {[%clk 0:00:07]} 33. Kxf1 {[%clk 0:00:40]}  Ng8 {[%clk 0:00:06]} 34. Qa7 {[%clk 0:00:34]}  Qh7 {[%clk 0:00:02]} 35. Rxf7+ {[%clk 0:00:33]}  Qxf7 {[%clk 0:00:03]} 36. Qxf7+ {[%clk 0:00:33]}  Kxf7 {[%clk 0:00:04]} 37. Rc7+ {[%clk 0:00:32]}  Re7 {[%clk 0:00:03]} 38. Rxe7+ {[%clk 0:00:31]}  Kxe7 {[%clk 0:00:04]} 39. Ke2 {[%clk 0:00:31]}  Kd7 {[%clk 0:00:03]} 40. Kd3 {[%clk 0:00:32]}  Kc7 {[%clk 0:00:04]} 41. Kc4 {[%clk 0:00:32]}  Kb6 {[%clk 0:00:04]} 42. Ng7 {[%clk 0:00:28]}  Ne7 {[%clk 0:00:01]} 43. Ne8 {[%clk 0:00:28]}  Nc8 {[%clk 0:00:01]} 44. Nxf6 {[%clk 0:00:27]}  Ka6 {[%clk 0:00:01]} 45. Nh7 {[%clk 0:00:25]}  Nb6+ {[%clk 0:00:02]} 46. Kd3 {[%clk 0:00:24]}  Kb5 {[%clk 0:00:02]} 47. Nxg5 {[%clk 0:00:23]}  Nd7 {[%clk 0:00:02]} 48. Nf3 {[%clk 0:00:22]}  Nc5+ {[%clk 0:00:01]} 49. Ke3 {[%clk 0:00:22]}  a4 {[%clk 0:00:00]} 50. f6 {[%clk 0:00:21]} 1-0


[Site "https://www.chess.com"]

[Event "Titled Tuesday Blitz June 20 Late 2023"]
[White "sebastianmarinp"]
[Black "Cueto, Jonny"]
[BlackFideId "3300145"]
[WhiteElo "2362"]
[BlackElo "2240"]
[Result "1-0"]
[Round "5"]
[TimeControl "180+2"]
[Date "2023.06.20"]
[WhiteClock "0:01:00"]
[BlackClock "0:00:00"]
[Board "154"]

1. e4 {[%clk 0:03:00]}  e6 {[%clk 0:02:57]} 2. d4 {[%clk 0:02:59]}  d5 {[%clk 0:02:58]} 3. Nc3 {[%clk 0:03:00]}  Nf6 {[%clk 0:02:58]} 4. e5 {[%clk 0:02:59]}  Nfd7 {[%clk 0:02:59]} 5. f4 {[%clk 0:03:00]}  c5 {[%clk 0:02:59]} 6. Nf3 {[%clk 0:02:59]}  Nc6 {[%clk 0:03:00]} 7. Be3 {[%clk 0:03:00]}  Be7 {[%clk 0:03:00]} 8. Qd2 {[%clk 0:02:59]}  O-O {[%clk 0:03:01]} 9. dxc5 {[%clk 0:02:57]}  Nxc5 {[%clk 0:03:01]} 10. O-O-O {[%clk 0:02:54]}  a6 {[%clk 0:02:59]} 11. Qf2 {[%clk 0:02:51]}  Nd7 {[%clk 0:02:58]} 12. Nd4 {[%clk 0:02:50]}  Nxd4 {[%clk 0:02:55]} 13. Bxd4 {[%clk 0:02:51]}  b5 {[%clk 0:02:55]} 14. Bd3 {[%clk 0:02:50]}  b4 {[%clk 0:02:48]} 15. Ne2 {[%clk 0:02:49]}  g6 {[%clk 0:02:44]} 16. Kb1 {[%clk 0:02:48]}  a5 {[%clk 0:02:42]} 17. g4 {[%clk 0:02:44]}  a4 {[%clk 0:02:16]} 18. h4 {[%clk 0:02:38]}  b3 {[%clk 0:02:12]} 19. h5 {[%clk 0:02:35]}  a3 {[%clk 0:01:40]} 20. cxb3 {[%clk 0:02:33]}  axb2 {[%clk 0:01:40]} 21. Bxb2 {[%clk 0:02:32]}  Qa5 {[%clk 0:01:38]} 22. Nc1 {[%clk 0:02:28]}  Nc5 {[%clk 0:01:19]} 23. Qh2 {[%clk 0:02:12]}  g5 {[%clk 0:00:56]} 24. Bc2 {[%clk 0:01:57]}  h6 {[%clk 0:00:31]} 25. a3 {[%clk 0:01:42]}  Ne4 {[%clk 0:00:19]} 26. b4 {[%clk 0:01:41]}  Qa7 {[%clk 0:00:13]} 27. Rhe1 {[%clk 0:01:24]}  Ba6 {[%clk 0:00:13]} 28. Qg2 {[%clk 0:01:17]}  Bc4 {[%clk 0:00:11]} 29. Rxe4 {[%clk 0:01:15]}  dxe4 {[%clk 0:00:10]} 30. Qxe4 {[%clk 0:01:16]}  f5 {[%clk 0:00:05]} 31. Qxc4 {[%clk 0:01:09]}  Rfc8 {[%clk 0:00:02]} 32. Qxe6+ {[%clk 0:01:09]}  Kf8 {[%clk 0:00:02]} 33. Qxh6+ {[%clk 0:01:08]}  Kg8 {[%clk 0:00:01]} 34. Bxf5 {[%clk 0:01:02]}  Rxc1+ {[%clk 0:00:00]} 35. Rxc1 {[%clk 0:01:00]} 1-0


[Site "https://www.chess.com"]

[Event "Titled Tuesday Blitz June 20 Late 2023"]
[White "Bueno, Alfeu Junior Varela"]
[Black "Gardezi, Arsal"]
[WhiteFideId "2108879"]
[BlackFideId "30949521"]
[WhiteElo "2175"]
[BlackElo "1906"]
[Result "1-0"]
[Round "5"]
[TimeControl "180+2"]
[Date "2023.06.20"]
[WhiteClock "0:00:15"]
[BlackClock "0:00:14"]
[Board "155"]

1. e4 {[%clk 0:02:52]}  e5 {[%clk 0:02:56]} 2. Nc3 {[%clk 0:02:45]}  Nc6 {[%clk 0:02:56]} 3. Bc4 {[%clk 0:02:43]}  Nf6 {[%clk 0:02:53]} 4. d3 {[%clk 0:02:43]}  Na5 {[%clk 0:02:53]} 5. Bb3 {[%clk 0:02:42]}  Nxb3 {[%clk 0:02:52]} 6. axb3 {[%clk 0:02:43]}  Bc5 {[%clk 0:02:51]} 7. Bg5 {[%clk 0:02:43]}  h6 {[%clk 0:02:42]} 8. Bh4 {[%clk 0:02:43]}  g5 {[%clk 0:02:38]} 9. Bg3 {[%clk 0:02:43]}  d6 {[%clk 0:02:37]} 10. Na4 {[%clk 0:02:43]}  Bg4 {[%clk 0:02:26]} 11. Ne2 {[%clk 0:02:37]}  Bb6 {[%clk 0:02:23]} 12. Nxb6 {[%clk 0:02:36]}  axb6 {[%clk 0:02:23]} 13. f3 {[%clk 0:02:27]}  Be6 {[%clk 0:02:21]} 14. O-O {[%clk 0:02:22]}  Nh5 {[%clk 0:02:20]} 15. Rxa8 {[%clk 0:02:12]}  Qxa8 {[%clk 0:02:17]} 16. d4 {[%clk 0:02:03]}  Nxg3 {[%clk 0:02:13]} 17. Nxg3 {[%clk 0:02:04]}  O-O {[%clk 0:02:13]} 18. Qd2 {[%clk 0:01:52]}  Qa5 {[%clk 0:01:41]} 19. b4 {[%clk 0:01:51]}  Qa2 {[%clk 0:01:38]} 20. d5 {[%clk 0:01:50]}  Bd7 {[%clk 0:01:37]} 21. h4 {[%clk 0:01:35]}  f6 {[%clk 0:01:30]} 22. c3 {[%clk 0:01:26]}  Kh7 {[%clk 0:01:20]} 23. Kf2 {[%clk 0:01:18]}  Qa8 {[%clk 0:01:03]} 24. Rh1 {[%clk 0:01:11]}  Kg6 {[%clk 0:00:56]} 25. Nf5 {[%clk 0:01:03]}  Bxf5 {[%clk 0:00:47]} 26. exf5+ {[%clk 0:01:04]}  Kg7 {[%clk 0:00:46]} 27. Qe2 {[%clk 0:00:50]}  Qa2 {[%clk 0:00:26]} 28. Kg3 {[%clk 0:00:43]}  Qxd5 {[%clk 0:00:23]} 29. Qe3 {[%clk 0:00:29]}  Qf7 {[%clk 0:00:19]} 30. Qd3 {[%clk 0:00:24]}  Qd7 {[%clk 0:00:19]} 31. Kf2 {[%clk 0:00:22]}  Qc6 {[%clk 0:00:19]} 32. g4 {[%clk 0:00:21]}  d5 {[%clk 0:00:19]} 33. Rd1 {[%clk 0:00:20]}  Rd8 {[%clk 0:00:19]} 34. Kg3 {[%clk 0:00:19]}  Rd6 {[%clk 0:00:20]} 35. hxg5 {[%clk 0:00:19]}  fxg5 {[%clk 0:00:19]} 36. Rh1 {[%clk 0:00:19]}  e4 {[%clk 0:00:19]} 37. Qd4+ {[%clk 0:00:17]}  Rf6 {[%clk 0:00:19]} 38. Re1 {[%clk 0:00:16]}  Qe6 {[%clk 0:00:20]} 39. fxe4 {[%clk 0:00:15]}  Qd6+ {[%clk 0:00:14]} 40. e5 {[%clk 0:00:15]} 1-0


[Site "https://www.chess.com"]

[Event "Titled Tuesday Blitz June 20 Late 2023"]
[White "White, John S."]
[Black "Castella Garcia, Fausto"]
[WhiteFideId "2502348"]
[BlackFideId "3501922"]
[WhiteElo "2028"]
[BlackElo "2245"]
[Result "0-1"]
[Round "5"]
[TimeControl "180+2"]
[Date "2023.06.20"]
[WhiteClock "0:00:00"]
[BlackClock "0:00:32"]
[Board "158"]

1. e4 {[%clk 0:02:58]}  c5 {[%clk 0:02:59]} 2. Nf3 {[%clk 0:02:57]}  Nf6 {[%clk 0:02:59]} 3. Nc3 {[%clk 0:02:56]}  d6 {[%clk 0:02:56]} 4. Bc4 {[%clk 0:02:51]}  Nc6 {[%clk 0:02:55]} 5. O-O {[%clk 0:02:50]}  e6 {[%clk 0:02:55]} 6. Re1 {[%clk 0:02:49]}  Be7 {[%clk 0:02:55]} 7. a4 {[%clk 0:02:46]}  O-O {[%clk 0:02:53]} 8. d3 {[%clk 0:02:44]}  d5 {[%clk 0:02:52]} 9. exd5 {[%clk 0:02:40]}  Nxd5 {[%clk 0:02:53]} 10. Nxd5 {[%clk 0:02:37]}  exd5 {[%clk 0:02:54]} 11. Bb3 {[%clk 0:02:30]}  Bg4 {[%clk 0:02:54]} 12. h3 {[%clk 0:02:28]}  Bh5 {[%clk 0:02:53]} 13. Be3 {[%clk 0:02:23]}  Ne5 {[%clk 0:02:37]} 14. g4 {[%clk 0:02:10]}  Nxg4 {[%clk 0:02:37]} 15. hxg4 {[%clk 0:02:05]}  Bxg4 {[%clk 0:02:38]} 16. Qe2 {[%clk 0:01:41]}  Rc8 {[%clk 0:02:31]} 17. Kg2 {[%clk 0:01:37]}  Rc6 {[%clk 0:02:27]} 18. Bf4 {[%clk 0:01:18]}  Re6 {[%clk 0:02:09]} 19. Qd2 {[%clk 0:01:08]}  Rf6 {[%clk 0:01:31]} 20. Ne5 {[%clk 0:00:58]}  Bd6 {[%clk 0:01:24]} 21. Nxg4 {[%clk 0:00:43]}  Rxf4 {[%clk 0:01:22]} 22. Ne3 {[%clk 0:00:35]}  Qg5+ {[%clk 0:01:20]} 23. Kf1 {[%clk 0:00:33]}  d4 {[%clk 0:01:15]} 24. Ng2 {[%clk 0:00:26]}  Rf5 {[%clk 0:01:05]} 25. Qxg5 {[%clk 0:00:25]}  Rxg5 {[%clk 0:01:06]} 26. Re4 {[%clk 0:00:22]}  h5 {[%clk 0:01:04]} 27. Rae1 {[%clk 0:00:23]}  Kh7 {[%clk 0:01:00]} 28. Re8 {[%clk 0:00:20]}  Rxe8 {[%clk 0:01:01]} 29. Rxe8 {[%clk 0:00:20]}  f6 {[%clk 0:00:58]} 30. Re6 {[%clk 0:00:18]}  Be5 {[%clk 0:00:57]} 31. Bd5 {[%clk 0:00:17]}  b6 {[%clk 0:00:56]} 32. Re7 {[%clk 0:00:17]}  Kh6 {[%clk 0:00:46]} 33. Rxa7 {[%clk 0:00:15]}  Rf5 {[%clk 0:00:45]} 34. Ke2 {[%clk 0:00:13]}  Rg5 {[%clk 0:00:41]} 35. Nh4 {[%clk 0:00:10]}  Bb8 {[%clk 0:00:37]} 36. Rb7 {[%clk 0:00:09]}  Rxd5 {[%clk 0:00:36]} 37. Rxb8 {[%clk 0:00:09]}  g5 {[%clk 0:00:37]} 38. Nf3 {[%clk 0:00:07]}  g4 {[%clk 0:00:37]} 39. Nh4 {[%clk 0:00:06]}  Kg5 {[%clk 0:00:37]} 40. Ng2 {[%clk 0:00:06]}  f5 {[%clk 0:00:33]} 41. Rxb6 {[%clk 0:00:05]}  h4 {[%clk 0:00:32]} 42. Kf1 {[%clk 0:00:03]}  h3 {[%clk 0:00:32]} 43. Ne1 {[%clk 0:00:00]}  Re5 {[%clk 0:00:32]} 0-1


[Site "https://www.chess.com"]

[Event "Titled Tuesday Blitz June 20 Late 2023"]
[White "Rosenberg, Evan S"]
[Black "Gyulamiryan-koryun"]
[WhiteFideId "2019299"]
[WhiteElo "2328"]
[BlackElo "1878"]
[Result "1-0"]
[Round "5"]
[TimeControl "180+2"]
[Date "2023.06.20"]
[WhiteClock "0:01:05"]
[BlackClock "0:00:11"]
[Board "160"]

1. d4 {[%clk 0:03:00]}  Nf6 {[%clk 0:02:57]} 2. Bg5 {[%clk 0:02:29]}  g6 {[%clk 0:02:49]} 3. Bxf6 {[%clk 0:02:29]}  exf6 {[%clk 0:02:48]} 4. e3 {[%clk 0:02:30]}  Bg7 {[%clk 0:02:48]} 5. Ne2 {[%clk 0:02:31]}  O-O {[%clk 0:02:47]} 6. Nf4 {[%clk 0:02:31]}  c6 {[%clk 0:02:43]} 7. Bc4 {[%clk 0:02:31]}  d5 {[%clk 0:02:41]} 8. Bb3 {[%clk 0:02:32]}  b5 {[%clk 0:02:30]} 9. a4 {[%clk 0:02:30]}  b4 {[%clk 0:02:26]} 10. c3 {[%clk 0:02:24]}  a5 {[%clk 0:02:26]} 11. c4 {[%clk 0:02:21]}  Bb7 {[%clk 0:01:59]} 12. cxd5 {[%clk 0:02:18]}  cxd5 {[%clk 0:01:58]} 13. h4 {[%clk 0:02:08]}  h5 {[%clk 0:01:56]} 14. Nd2 {[%clk 0:02:07]}  Re8 {[%clk 0:01:48]} 15. Kf1 {[%clk 0:02:00]}  Na6 {[%clk 0:01:39]} 16. Rh3 {[%clk 0:01:46]}  Nc7 {[%clk 0:01:38]} 17. Rg3 {[%clk 0:01:46]}  Ne6 {[%clk 0:01:24]} 18. Nxh5 {[%clk 0:01:37]}  gxh5 {[%clk 0:01:23]} 19. Qxh5 {[%clk 0:01:38]}  Re7 {[%clk 0:00:59]} 20. Qg4 {[%clk 0:01:17]}  Qf8 {[%clk 0:00:47]} 21. Bc2 {[%clk 0:01:09]}  f5 {[%clk 0:00:19]} 22. Qxf5 {[%clk 0:01:08]}  f6 {[%clk 0:00:10]} 23. Qh7+ {[%clk 0:01:05]}  Kf7 {[%clk 0:00:11]} 24. Bg6# {[%clk 0:01:05]} 1-0


[Site "https://www.chess.com"]

[Event "Titled Tuesday Blitz June 20 Late 2023"]
[White "Szczepanek, Radoslaw"]
[Black "De Souza, Cristiano Gomes"]
[WhiteFideId "1120395"]
[BlackFideId "2151758"]
[WhiteElo "2161"]
[BlackElo "2068"]
[Result "1-0"]
[Round "5"]
[TimeControl "180+2"]
[Date "2023.06.20"]
[WhiteClock "0:00:07"]
[BlackClock "0:00:27"]
[Board "165"]

1. e4 {[%clk 0:02:59]}  c5 {[%clk 0:02:59]} 2. f4 {[%clk 0:02:56]}  d6 {[%clk 0:02:58]} 3. Nf3 {[%clk 0:02:56]}  Bg4 {[%clk 0:02:53]} 4. Bb5+ {[%clk 0:02:55]}  Nd7 {[%clk 0:02:52]} 5. O-O {[%clk 0:02:54]}  a6 {[%clk 0:02:52]} 6. Be2 {[%clk 0:02:47]}  e6 {[%clk 0:02:51]} 7. d3 {[%clk 0:02:45]}  g6 {[%clk 0:02:47]} 8. h3 {[%clk 0:02:43]}  Bxf3 {[%clk 0:02:47]} 9. Bxf3 {[%clk 0:02:44]}  Bg7 {[%clk 0:02:47]} 10. c3 {[%clk 0:02:45]}  Ne7 {[%clk 0:02:47]} 11. Be3 {[%clk 0:02:45]}  O-O {[%clk 0:02:47]} 12. Nd2 {[%clk 0:02:45]}  f5 {[%clk 0:02:47]} 13. Qe1 {[%clk 0:02:39]}  Rb8 {[%clk 0:02:46]} 14. Kh1 {[%clk 0:02:37]}  b5 {[%clk 0:02:46]} 15. a3 {[%clk 0:02:34]}  a5 {[%clk 0:02:43]} 16. d4 {[%clk 0:02:09]}  cxd4 {[%clk 0:02:30]} 17. Bxd4 {[%clk 0:02:06]}  e5 {[%clk 0:02:19]} 18. fxe5 {[%clk 0:02:03]}  dxe5 {[%clk 0:02:19]} 19. Bf2 {[%clk 0:01:55]}  h6 {[%clk 0:02:01]} 20. Qe2 {[%clk 0:01:51]}  Kh7 {[%clk 0:01:58]} 21. Rad1 {[%clk 0:01:48]}  Qc7 {[%clk 0:01:57]} 22. Rfe1 {[%clk 0:01:35]}  f4 {[%clk 0:01:38]} 23. Bg4 {[%clk 0:01:26]}  Nf6 {[%clk 0:01:37]} 24. Be6 {[%clk 0:01:23]}  Rfd8 {[%clk 0:01:33]} 25. Nf3 {[%clk 0:01:19]}  g5 {[%clk 0:01:25]} 26. Rxd8 {[%clk 0:01:03]}  Rxd8 {[%clk 0:01:20]} 27. Rd1 {[%clk 0:01:04]}  Rxd1+ {[%clk 0:01:17]} 28. Qxd1 {[%clk 0:01:05]}  Qc6 {[%clk 0:01:11]} 29. Bf5+ {[%clk 0:00:54]}  Nxf5 {[%clk 0:01:10]} 30. exf5 {[%clk 0:00:55]}  e4 {[%clk 0:01:10]} 31. Ne5 {[%clk 0:00:44]}  Qc8 {[%clk 0:00:57]} 32. Qe2 {[%clk 0:00:24]}  Qxf5 {[%clk 0:00:55]} 33. Qxb5 {[%clk 0:00:24]}  f3 {[%clk 0:00:50]} 34. a4 {[%clk 0:00:15]}  fxg2+ {[%clk 0:00:49]} 35. Kxg2 {[%clk 0:00:15]}  Nh5 {[%clk 0:00:47]} 36. Bg3 {[%clk 0:00:15]}  Nxg3 {[%clk 0:00:41]} 37. Kxg3 {[%clk 0:00:10]}  Bxe5+ {[%clk 0:00:41]} 38. Kg2 {[%clk 0:00:09]}  Qf3+ {[%clk 0:00:40]} 39. Kg1 {[%clk 0:00:10]}  Bg3 {[%clk 0:00:34]} 40. Qd7+ {[%clk 0:00:09]}  Kg6 {[%clk 0:00:34]} 41. Qe8+ {[%clk 0:00:08]}  Kf5 {[%clk 0:00:29]} 42. Qf7+ {[%clk 0:00:07]}  Ke5 {[%clk 0:00:28]} 43. Qe7+ {[%clk 0:00:07]}  Kd5 {[%clk 0:00:27]} 44. Qd7+ {[%clk 0:00:07]}  Kc4 {[%clk 0:00:27]} 45. Qb5# {[%clk 0:00:07]} 1-0


[Site "https://www.chess.com"]